fUST/lending_fUST_20250822
["ID","MTS","AMOUNT","RATE_DAILY","PERIOD"]
[380731138,1755852644271,-426.62694372,0.00024599,2]
[380731140,1755852644280,-500.0,0.00024599,2]
[380731142,1755852644289,-487.752808,0.00024599,7]
[380731144,1755852644299,-487.752808,0.00024599,7]
[380731146,1755852644308,-487.752808,0.00024599,7]
[380731148,1755852644318,-611.502105,0.00024599,7]
[380731150,1755852644327,-487.75280924,0.00024599,7]
[380731152,1755852644336,-611.502105,0.00024599,7]
[380731154,1755852644345,-611.502105,0.00024599,7]
[380731156,1755852644355,-611.502106,0.00024599,7]
[380731158,1755852644364,-151.0,0.00024599,7]
[380731160,1755852644378,-151.0,0.00024599,7]
[380731162,1755852644386,-215.90555669,0.000246,2]
[380731164,1755852644396,-205456.12466655,0.000246,2]
[380731166,1755852644405,-2568.78,0.000246,7]
[380731168,1755852644414,-4538.06,0.000246,7]
[380731170,1755852644424,-200.0,0.000246,3]
[380731172,1755852644433,-152.82516,0.000246,7]
[380731174,1755852644442,-151.0,0.000246,7]
[380731176,1755852644454,-151.0,0.000246,7]
[380731178,1755852644464,-151.0,0.000246,7]
[380731180,1755852644473,-151.0,0.000246,7]
[380731182,1755852644483,-151.0,0.000246,7]
[380731184,1755852644492,-151.0,0.000246,7]
[380731186,1755852644501,-151.0,0.000246,7]
[380731188,1755852644510,-151.0,0.000246,7]
[380731190,1755852644520,-151.0,0.000246,7]
[380731192,1755852644529,-210.0333,0.000246,7]
[380731194,1755852644538,-151.0,0.000246,7]
[380731196,1755852644547,-151.0,0.000246,7]
[380731198,1755852644556,-225.716799,0.000246,7]
[380731199,1755852644565,-233.68964,0.000246,7]
[380731201,1755852644574,-233.68964,0.000246,7]
[380731203,1755852644584,-233.68964,0.000246,7]
[380731205,1755852644594,-233.689632,0.000246,7]
[380731207,1755852644603,-151.0,0.000246,7]
[380731209,1755852644613,-207.851604,0.000246,7]
[380731211,1755852644622,-151.0,0.000246,7]
[380731213,1755852644632,-151.0,0.000246,7]
[380731215,1755852644641,-265.472366,0.000246,7]
[380731217,1755852644650,-265.472366,0.000246,7]
[380731219,1755852644660,-265.472371,0.000246,7]
[380731221,1755852644669,-169.416675,0.000246,28]
[380731223,1755852644679,-591.08038247,0.00024608,2]
[380731225,1755852644688,-1415.69490132,0.00024612,2]
[380731227,1755852644698,-480.0,0.00024657,10]
[380731229,1755852644708,-473.60714507,0.00024657,10]
[380731231,1755852644718,-604.17284146,0.00024657,10]
[380731233,1755852644727,-480.0,0.00024657,10]
[380731235,1755852644737,-484.49375864,0.00024657,10]
[380731237,1755852644746,-481.58364558,0.00024657,10]
[380731239,1755852644756,-483.87467215,0.00024657,10]
[380731241,1755852644766,-482.23414586,0.00024657,10]
[380731243,1755852644775,-480.0,0.00024657,10]
[380731245,1755852644784,-579.99170573,0.00024657,10]
[380731247,1755852644794,-480.0,0.00024657,10]
[380731249,1755852644803,-481.74998065,0.00024657,10]
[380731251,1755852644813,-481.83234333,0.00024657,10]
[380731253,1755852644822,-500.0,0.00024657,10]
[380731255,1755852644832,-503.12510633,0.00024657,10]
[380731257,1755852644841,-460.70968083,0.00024657,10]
[380731259,1755852644850,-480.0,0.00024657,10]
[380731261,1755852644862,-480.0,0.00024657,10]
[380731263,1755852644872,-480.0,0.00024657,10]
[380731265,1755852644881,-480.0,0.00024657,10]
[380731266,1755852644890,-480.0,0.00024657,10]
[380731268,1755852644899,-481.36649828,0.00024657,10]
[380731270,1755852644908,-480.0,0.00024657,10]
[380731272,1755852644918,-480.0,0.00024657,10]
[380731274,1755852644927,-490.60034808,0.00024657,10]
[380731276,1755852644936,-463.79630478,0.00024657,10]
[380731278,1755852644945,-480.0,0.00024657,10]
[380731280,1755852644954,-517.93562153,0.00024657,10]
[380731282,1755852644964,-480.0,0.00024657,10]
[380731284,1755852644973,-480.0,0.00024657,10]
[380731286,1755852644983,-488.71287885,0.00024657,10]
[380731288,1755852644991,-151.0,0.00024657,7]
[380731290,1755852645001,-151.0,0.00024657,7]
[380731292,1755852645010,-178.98914747,0.00024657,10]
[380731294,1755852645019,-480.0,0.00024657,10]
[380731296,1755852645028,-566.26530327,0.00024657,10]
[380731298,1755852645037,-480.0,0.00024657,10]
[380731300,1755852645047,-180.35925246,0.00024657,10]
[380731302,1755852645057,-151.0,0.00024657,7]
[380731304,1755852645067,-151.0,0.00024657,7]
[380731306,1755852645076,-219.524808,0.00024657,7]
[380731308,1755852645085,-151.0,0.00024657,7]
[380731310,1755852645094,-151.0,0.00024657,7]
[380731312,1755852645104,-151.0,0.00024657,7]
[380731314,1755852645113,-480.0,0.00024657,10]
[380731316,1755852645122,-480.07972463,0.00024657,10]
[380731318,1755852645131,-480.87509938,0.00024657,10]
[380731320,1755852645141,-480.0,0.00024657,10]
[380731322,1755852645150,-480.0,0.00024657,10]
[380731324,1755852645159,-480.0,0.00024657,10]
[380731326,1755852645168,-181.093183,0.00024657,7]
[380731328,1755852645178,-480.0,0.00024657,10]
[380731330,1755852645187,-480.0,0.00024657,10]
[380731332,1755852645197,-151.0,0.00024657,7]
[380731334,1755852645206,-480.0,0.00024657,10]
[380731336,1755852645216,-151.0,0.00024657,7]
[380731338,1755852645225,-151.0,0.00024657,7]
[380731340,1755852645234,-480.0,0.00024657,10]
[380731342,1755852645243,-500.0,0.00024657,10]
[380731344,1755852645252,-482.21934491,0.00024657,10]
[380731346,1755852645262,-426.48246694,0.00024657,10]
[380731348,1755852645271,-480.0,0.00024657,10]
[380731350,1755852645280,-480.0,0.00024657,10]
[380731352,1755852645289,-480.0,0.00024657,10]
[380731354,1755852645298,-480.0,0.00024657,10]
[380731356,1755852645308,-480.0,0.00024657,10]
[380731358,1755852645318,-480.0,0.00024657,10]
[380731360,1755852645327,-480.0,0.00024657,10]
[380731362,1755852645336,-480.0,0.00024657,10]
[380731363,1755852645345,-484.27846811,0.00024657,10]
[380731365,1755852645355,-480.0,0.00024657,10]
[380731368,1755852645366,-480.0,0.00024657,10]
[380731369,1755852645379,-481.25992814,0.00024657,10]
[380731371,1755852645388,-482.42392124,0.00024657,10]
[380731373,1755852645397,-480.0,0.00024657,10]
[380731374,1755852645407,-480.0,0.00024657,10]
[380731375,1755852645416,-480.0,0.00024657,10]
[380731376,1755852645425,-484.03283918,0.00024657,10]
[380731377,1755852645435,-480.0,0.00024657,10]
[380731378,1755852645446,-480.0,0.00024657,10]
[380731379,1755852645454,-237.6032039,0.00024657,10]
[380731380,1755852645464,-485.79870911,0.00024657,10]
[380731382,1755852645474,-483.24652406,0.00024657,10]
[380731384,1755852645484,-468.045565,0.00024657,10]
[380731386,1755852645493,-489.82285713,0.00024657,10]
[380731388,1755852645502,-480.0,0.00024657,10]
[380731390,1755852645511,-480.0,0.00024657,10]
[380731392,1755852645520,-480.0,0.00024657,10]
[380731394,1755852645530,-180.91555923,0.00024657,10]
[380731396,1755852645539,-500.0,0.00024657,10]
[380731398,1755852645548,-500.0,0.00024657,10]
[380731400,1755852645558,-500.0,0.00024657,10]
[380731402,1755852645567,-363.98516244,0.00024657,10]
[380731404,1755852645577,-480.0,0.00024657,10]
[380731406,1755852645586,-480.0,0.00024657,10]
[380731408,1755852645595,-480.0,0.00024657,10]
[380731410,1755852645605,-480.0,0.00024657,10]
[380731412,1755852645613,-480.0,0.00024657,10]
[380731414,1755852645622,-480.0,0.00024657,10]
[380731425,1755852645712,-480.0,0.00024657,10]
[380731427,1755852645722,-480.0,0.00024657,10]
[380731429,1755852645731,-480.61096259,0.00024657,10]
[380731431,1755852645741,-480.0,0.00024657,10]
[380731433,1755852645750,-480.0,0.00024657,10]
[380731435,1755852645760,-480.0,0.00024657,10]
[380731437,1755852645770,-481.94292695,0.00024657,10]
[380731439,1755852645780,-480.0,0.00024657,10]
[380731441,1755852645790,-480.0,0.00024657,10]
[380731443,1755852645799,-418.05586666,0.00024657,10]
[380731445,1755852645809,-480.0,0.00024657,10]
[380731447,1755852645818,-480.0,0.00024657,10]
[380731449,1755852645828,-480.0,0.00024657,10]
[380731451,1755852645837,-480.0,0.00024657,10]
[380731453,1755852645847,-480.0,0.00024657,10]
[380731455,1755852645856,-480.0,0.00024657,10]
[380731457,1755852645866,-493.59016025,0.00024657,10]
[380731459,1755852645875,-480.0,0.00024657,10]
[380731461,1755852645886,-485.7441046,0.00024657,10]
[380731463,1755852645895,-480.0,0.00024657,10]
[380731465,1755852645905,-480.0,0.00024657,10]
[380731467,1755852645914,-480.0,0.00024657,10]
[380731469,1755852645923,-490.99217003,0.00024657,10]
[380731471,1755852645932,-481.72523962,0.00024657,10]
[380731473,1755852645942,-480.0,0.00024657,10]
[380731475,1755852645951,-500.0,0.00024657,10]
[380731477,1755852645960,-480.0,0.00024657,10]
[380731479,1755852645969,-480.0,0.00024657,10]
[380731481,1755852645979,-480.0,0.00024657,10]
[380731483,1755852645988,-480.0,0.00024657,10]
[380731485,1755852645998,-480.0,0.00024657,10]
[380731487,1755852646008,-480.0,0.00024657,10]
[380731489,1755852646017,-332.36427381,0.00024657,10]
[380731491,1755852646027,-480.0,0.00024657,10]
[380731493,1755852646037,-480.0,0.00024657,10]
[380731495,1755852646046,-480.0,0.00024657,10]
[380731497,1755852646056,-482.09810878,0.00024657,10]
[380731499,1755852646065,-480.0,0.00024657,10]
[380731501,1755852646074,-480.0,0.00024657,10]
[380731503,1755852646084,-480.0,0.00024657,10]
[380731506,1755852646094,-480.0,0.00024657,10]
[380731508,1755852646104,-480.0,0.00024657,10]
[380731510,1755852646113,-480.0,0.00024657,10]
[380731512,1755852646122,-487.22251955,0.00024657,10]
[380731514,1755852646132,-480.0,0.00024657,10]
[380731516,1755852646142,-480.0,0.00024657,10]
[380731518,1755852646151,-480.0,0.00024657,10]
[380731520,1755852646160,-480.0,0.00024657,10]
[380731522,1755852646169,-1276.46,0.00024657,10]
[380731524,1755852646178,-480.0,0.00024657,10]
[380731526,1755852646187,-480.0,0.00024657,10]
[380731528,1755852646196,-480.0,0.00024657,10]
[380731530,1755852646206,-480.0,0.00024657,10]
[380731532,1755852646216,-480.0,0.00024657,10]
[380731534,1755852646226,-480.0,0.00024657,10]
[380731536,1755852646235,-480.0,0.00024657,10]
[380731538,1755852646244,-480.0,0.00024657,10]
[380731540,1755852646253,-480.0,0.00024657,10]
[380731542,1755852646263,-480.0,0.00024657,10]
[380731544,1755852646272,-480.0,0.00024657,10]
[380731546,1755852646281,-483.49637551,0.00024657,10]
[380731548,1755852646291,-480.0,0.00024657,10]
[380731550,1755852646301,-482.75479477,0.00024657,10]
[380731552,1755852646311,-480.0,0.00024657,10]
[380731554,1755852646320,-480.0,0.00024657,10]
[380731556,1755852646329,-480.0,0.00024657,10]
[380731558,1755852646339,-527.10501389,0.00024657,10]
[380731560,1755852646348,-480.0,0.00024657,10]
[380731562,1755852646357,-480.0,0.00024657,10]
[380731564,1755852646367,-480.0,0.00024657,10]
[380731566,1755852646380,-480.0,0.00024657,10]
[380731568,1755852646389,-480.0,0.00024657,10]
[380731570,1755852646399,-480.0,0.00024657,10]
[380731572,1755852646409,-483.85066555,0.00024657,10]
[380731574,1755852646421,-483.11946156,0.00024657,10]
[380731576,1755852646429,-480.0,0.00024657,10]
[380731578,1755852646439,-480.0,0.00024657,10]
[380731580,1755852646449,-480.0,0.00024657,10]
[380731582,1755852646458,-480.0,0.00024657,10]
[380731584,1755852646469,-480.0,0.00024657,10]
[380731586,1755852646478,-548.90583723,0.00024657,10]
[380731588,1755852646488,-480.0,0.00024657,10]
[380731590,1755852646497,-480.0,0.00024657,10]
[380731592,1755852646507,-480.0,0.00024657,10]
[380731595,1755852646518,-480.0,0.00024657,10]
[380731597,1755852646527,-480.0,0.00024657,10]
[380731598,1755852646536,-482.88706782,0.00024657,10]
[380731600,1755852646546,-480.0,0.00024657,10]
[380731602,1755852646555,-694.9,0.00024657,10]
[380731604,1755852646564,-658.49,0.00024657,10]
[380731607,1755852646574,-480.92949218,0.00024657,10]
[380731608,1755852646583,-480.0,0.00024657,10]
[380731611,1755852646594,-369.27573417,0.00024657,10]
[380731613,1755852646603,-480.0,0.00024657,10]
[380731615,1755852646613,-480.0,0.00024657,10]
[380731617,1755852646622,-417.15472785,0.00024657,10]
[380731619,1755852646632,-480.0,0.00024657,10]
[380731621,1755852646641,-480.0,0.00024657,10]
[380731623,1755852646650,-480.0,0.00024657,10]
[380731625,1755852646660,-583.90737695,0.00024657,10]
[380731627,1755852646669,-483.35398969,0.00024657,10]
[380731629,1755852646679,-480.0,0.00024657,10]
[380731631,1755852646687,-480.0,0.00024657,10]
[380731633,1755852646697,-480.0,0.00024657,10]
[380731635,1755852646707,-482.72061947,0.00024657,10]
[380731637,1755852646717,-480.0,0.00024657,10]
[380731639,1755852646726,-481.12636587,0.00024657,10]
[380731641,1755852646735,-367.18948599,0.00024657,10]
[380731643,1755852646744,-480.0,0.00024657,10]
[380731645,1755852646754,-480.0,0.00024657,10]
[380731647,1755852646763,-480.0,0.00024657,10]
[380731650,1755852646772,-480.0,0.00024657,10]
[380731653,1755852646781,-482.41233694,0.00024657,10]
[380731655,1755852646791,-488.82160219,0.00024657,10]
[380731657,1755852646800,-480.0,0.00024657,10]
[380731659,1755852646810,-480.0,0.00024657,10]
[380731662,1755852646819,-480.0,0.00024657,10]
[380731664,1755852646829,-480.0,0.00024657,10]
[380731667,1755852646838,-396.34431296,0.00024657,10]
[380731669,1755852646847,-461.57507201,0.00024657,10]
[380731671,1755852646857,-480.0,0.00024657,10]
[380731673,1755852646866,-480.0,0.00024657,10]
[380731675,1755852646875,-480.0,0.00024657,10]
[380731677,1755852646885,-480.0,0.00024657,10]
[380731679,1755852646895,-480.0,0.00024657,10]
[380731681,1755852646904,-480.0,0.00024657,10]
[380731683,1755852646914,-480.0,0.00024657,10]
[380731685,1755852646923,-480.0,0.00024657,10]
[380731687,1755852646932,-480.0,0.00024657,10]
[380731689,1755852646942,-322.4677631,0.00024657,10]
[380731691,1755852646951,-480.0,0.00024657,10]
[380731694,1755852646961,-480.0,0.00024657,10]
[380731696,1755852646971,-480.0,0.00024657,10]
[380731698,1755852646979,-480.0,0.00024657,10]
[380731699,1755852646988,-480.0,0.00024657,10]
[380731701,1755852646997,-480.0,0.00024657,10]
[380731703,1755852647006,-480.0,0.00024657,10]
[380731705,1755852647015,-480.0,0.00024657,10]
[380731707,1755852647025,-480.0,0.00024657,10]
[380731709,1755852647034,-480.0,0.00024657,10]
[380731711,1755852647043,-480.0,0.00024657,10]
[380731713,1755852647052,-480.0,0.00024657,10]
[380731715,1755852647061,-480.0,0.00024657,10]
[380731717,1755852647071,-480.9616447,0.00024657,10]
[380731719,1755852647080,-281.51225187,0.00024657,10]
[380731721,1755852647089,-480.0,0.00024657,10]
[380731723,1755852647098,-480.0,0.00024657,10]
[380731725,1755852647107,-212.31955565,0.00024657,10]
[380731727,1755852647117,-480.0,0.00024657,10]
[380731730,1755852647129,-480.0,0.00024657,10]
[380731732,1755852647138,-341.75500846,0.00024657,10]
[380731734,1755852647147,-528.9579881,0.00024657,10]
[380731736,1755852647156,-480.0,0.00024657,10]
[380731738,1755852647165,-480.0,0.00024657,10]
[380731740,1755852647174,-480.0,0.00024657,10]
[380731742,1755852647183,-480.0,0.00024657,10]
[380731743,1755852647192,-480.0,0.00024657,10]
[380731744,1755852647201,-480.0,0.00024657,10]
[380731746,1755852647212,-480.0,0.00024657,10]
[380731748,1755852647221,-495.31052747,0.00024657,10]
[380731750,1755852647230,-480.0,0.00024657,10]
[380731752,1755852647239,-480.0,0.00024657,10]
[380731754,1755852647249,-1037.19,0.00024657,10]
[380731756,1755852647259,-480.0,0.00024657,10]
[380731758,1755852647268,-536.07,0.00024657,10]
[380731760,1755852647277,-480.0,0.00024657,10]
[380731762,1755852647286,-480.0,0.00024657,10]
[380731764,1755852647296,-480.0,0.00024657,10]
[380731766,1755852647307,-480.0,0.00024657,10]
[380731768,1755852647317,-480.0,0.00024657,10]
[380731770,1755852647326,-480.0,0.00024657,10]
[380731772,1755852647336,-480.0,0.00024657,10]
[380731774,1755852647344,-480.0,0.00024657,10]
[380731776,1755852647354,-480.0,0.00024657,10]
[380731778,1755852647364,-462.72603182,0.00024657,10]
[380731780,1755852647376,-480.0,0.00024657,10]
[380731782,1755852647386,-480.0,0.00024657,10]
[380731784,1755852647395,-480.0,0.00024657,10]
[380731786,1755852647405,-480.0,0.00024657,10]
[380731788,1755852647415,-353.48038406,0.00024657,10]
[380731790,1755852647425,-480.0,0.00024657,7]
[380731792,1755852647434,-480.0,0.00024657,10]
[380731794,1755852647444,-480.0,0.00024657,10]
[380731796,1755852647454,-480.0,0.00024657,10]
[380731798,1755852647466,-480.0,0.00024657,10]
[380731800,1755852647476,-480.0,0.00024657,10]
[380731802,1755852647485,-487.23514484,0.00024657,10]
[380731804,1755852647495,-480.0,0.00024657,10]
[380731805,1755852647504,-480.0,0.00024657,10]
[380731807,1755852647513,-480.0,0.00024657,10]
[380731809,1755852647524,-500.0,0.00024657,10]
[380731811,1755852647535,-500.0,0.00024657,10]
[380731813,1755852647545,-500.0,0.00024657,10]
[380731815,1755852647555,-522.46501539,0.00024657,10]
[380731818,1755852647565,-480.0,0.00024657,10]
[380731820,1755852647575,-480.0,0.00024657,10]
[380731822,1755852647584,-480.0,0.00024657,10]
[380731823,1755852647594,-480.0,0.00024657,10]
[380731825,1755852647604,-480.0,0.00024657,10]
[380731827,1755852647614,-480.0,0.00024657,10]
[380731829,1755852647625,-406.33251424,0.00024657,10]
[380731831,1755852647635,-480.0,0.00024657,10]
[380731833,1755852647644,-482.66786441,0.00024657,10]
[380731835,1755852647654,-480.0,0.00024657,10]
[380731837,1755852647664,-480.0,0.00024657,10]
[380731839,1755852647673,-480.0,0.00024657,10]
[380731841,1755852647683,-480.0,0.00024657,10]
[380731843,1755852647692,-178.42984027,0.00024657,10]
[380731845,1755852647702,-480.0,0.00024657,10]
[380731846,1755852647713,-480.0,0.00024657,10]
[380731848,1755852647723,-480.0,0.00024657,10]
[380731850,1755852647732,-461.46509219,0.00024657,10]
[380731852,1755852647742,-480.0,0.00024657,10]
[380731854,1755852647751,-484.34526233,0.00024657,10]
[380731856,1755852647760,-480.0,0.00024657,10]
[380731867,1755852647852,-480.0,0.00024657,10]
[380731869,1755852647863,-480.0,0.00024657,10]
[380731871,1755852647873,-480.0,0.00024657,10]
[380731873,1755852647882,-509.50289435,0.00024657,10]
[380731875,1755852647892,-480.0,0.00024657,10]
[380731877,1755852647902,-480.0,0.00024657,10]
[380731879,1755852647911,-552.29,0.00024657,10]
[380731881,1755852647922,-480.0,0.00024657,10]
[380731884,1755852647933,-480.0,0.00024657,10]
[380731886,1755852647944,-480.0,0.00024657,10]
[380731888,1755852647954,-480.0,0.00024657,10]
[380731890,1755852647966,-484.52720891,0.00024657,10]
[380731892,1755852647976,-480.0,0.00024657,10]
[380731894,1755852647985,-480.0,0.00024657,10]
[380731896,1755852647994,-480.0,0.00024657,10]
[380731897,1755852648004,-480.0,0.00024657,10]
[380731899,1755852648014,-480.0,0.00024657,10]
[380731901,1755852648023,-480.0,0.00024657,10]
[380731903,1755852648033,-480.0,0.00024657,10]
[380731905,1755852648043,-480.0,0.00024657,10]
[380731907,1755852648053,-481.41675274,0.00024657,10]
[380731909,1755852648064,-484.55695125,0.00024657,10]
[380731911,1755852648073,-480.0,0.00024657,10]
[380731913,1755852648084,-480.0,0.00024657,10]
[380731915,1755852648094,-480.0,0.00024657,10]
[380731917,1755852648104,-480.0,0.00024657,10]
[380731919,1755852648113,-334.41955024,0.00024657,10]
[380731921,1755852648123,-460.0,0.00024657,10]
[380731923,1755852648132,-480.0,0.00024657,10]
[380731925,1755852648141,-344.10831507,0.00024657,10]
[380731927,1755852648150,-480.96497626,0.00024657,10]
[380731929,1755852648159,-335.09402219,0.00024657,10]
[380731931,1755852648168,-480.0,0.00024657,10]
[380731933,1755852648178,-480.0,0.00024657,10]
[380731934,1755852648187,-522.19309831,0.00024657,10]
[380731936,1755852648198,-480.0,0.00024657,10]
[380731938,1755852648207,-480.0,0.00024657,10]
[380731940,1755852648219,-232.3119291,0.00024657,10]
[380731942,1755852648230,-1184.9,0.00024657,10]
[380731944,1755852648240,-480.0,0.00024657,10]
[380731946,1755852648250,-480.0,0.00024657,10]
[380731948,1755852648260,-480.0,0.00024657,10]
[380731950,1755852648269,-480.0,0.00024657,10]
[380731952,1755852648279,-480.0,0.00024657,10]
[380731954,1755852648289,-491.49642234,0.00024657,10]
[380731956,1755852648299,-480.0,0.00024657,10]
[380731958,1755852648309,-480.0,0.00024657,10]
[380731960,1755852648319,-482.70416275,0.00024657,10]
[380731962,1755852648328,-480.0,0.00024657,10]
[380731964,1755852648337,-481.15288604,0.00024657,10]
[380731966,1755852648348,-482.05903641,0.00024657,10]
[380731968,1755852648356,-480.0,0.00024657,10]
[380731970,1755852648366,-480.0,0.00024657,2]
[380731972,1755852648381,-482.54087494,0.00024657,10]
[380731974,1755852648391,-1104.52,0.00024657,10]
[380731976,1755852648401,-481.15779031,0.00024657,10]
[380731978,1755852648411,-480.0,0.00024657,10]
[380731980,1755852648423,-482.12531415,0.00024657,10]
[380731982,1755852648433,-480.0,0.00024657,10]
[380731984,1755852648443,-480.0,0.00024657,10]
[380731986,1755852648453,-481.50121745,0.00024657,10]
[380731988,1755852648463,-480.0,0.00024657,10]
[380731990,1755852648473,-480.0,0.00024657,10]
[380731992,1755852648482,-480.0,0.00024657,10]
[380731995,1755852648501,-480.0,0.00024657,10]
[380731997,1755852648511,-366.01536802,0.00024657,10]
[380731999,1755852648520,-482.24471002,0.00024657,10]
[380732001,1755852648529,-480.0,0.00024657,3]
[380732003,1755852648539,-480.0,0.00024657,10]
[380732005,1755852648549,-480.0,0.00024657,10]
[380732007,1755852648558,-483.89122557,0.00024657,10]
[380732009,1755852648568,-480.0,0.00024657,10]
[380732010,1755852648577,-480.0,0.00024657,10]
[380732012,1755852648587,-480.0,0.00024657,10]
[380732014,1755852648596,-480.0,0.00024657,10]
[380732016,1755852648606,-150.0,0.00024658,2]
[380732018,1755852648615,-150.0,0.00024673,2]
[380732020,1755852648625,-150.0,0.00024673,2]
[380732022,1755852648636,-500.0,0.00024673,2]
[380732024,1755852648645,-500.0,0.00024673,2]
[380732026,1755852648654,-500.77531496,0.00024673,2]
[380732028,1755852648663,-500.0,0.00024673,2]
[380732030,1755852648673,-500.0,0.00024673,2]
[380732032,1755852648683,-507.67472078,0.00024673,2]
[380732034,1755852648693,-156.0,0.0002474,7]
[380732036,1755852648702,-156.0,0.0002474,7]
[380732038,1755852648713,-346.0,0.00024742,2]
[380732040,1755852648723,-587.0,0.00024742,2]
[380732042,1755852648733,-253.0,0.00024742,2]
[380732044,1755852648743,-180.0,0.00024742,2]
[380732046,1755852648753,-156.0,0.00024743,7]
[380732048,1755852648763,-158.74,0.00024744,7]
[380732050,1755852648772,-190.46,0.00024758,2]
[380732052,1755852648782,-560.0,0.00024758,2]
[380732054,1755852648791,-159.01,0.00024764,7]
[380732056,1755852648800,-151.0,0.000248,8]
[380732058,1755852648809,-654.37957292,0.00024825,2]
[380732060,1755852648819,-156.0,0.0002484,7]
[380732062,1755852648829,-156.0,0.00024843,7]
[380732064,1755852648839,-158.74,0.00024844,7]
[380732066,1755852648848,-159.01,0.00024864,7]
[380732068,1755852648857,-157.33602433,0.00024873,2]
[380732070,1755852648866,-150.0,0.00024899,2]
[380732071,1755852648876,-12500.0,0.000249,7]
[380732073,1755852648888,-5894.93615754,0.000249,7]
[380732075,1755852648898,-151.0,0.000249,8]
[380732077,1755852648907,-510985.770595,0.000249,2]
[380732079,1755852648917,-597.76365522,0.000249,2]
[380732081,1755852648926,-480.0,0.00024931,10]
[380732083,1755852648936,-480.0,0.00024931,10]
[380732085,1755852648946,-492.51172,0.00024931,10]
[380732087,1755852648956,-480.0,0.00024931,10]
[380732089,1755852648967,-480.0,0.00024931,10]
[380732091,1755852648977,-480.0,0.00024931,10]
[380732093,1755852648987,-492.34139644,0.00024931,10]
[380732095,1755852648996,-480.0,0.00024931,10]
[380732097,1755852649006,-483.17981907,0.00024931,10]
[380732099,1755852649015,-480.0,0.00024931,10]
[380732101,1755852649025,-480.0,0.00024931,10]
[380732103,1755852649035,-480.0,0.00024931,10]
[380732105,1755852649044,-593.63328228,0.00024931,10]
[380732107,1755852649053,-442.03707637,0.00024931,10]
[380732109,1755852649063,-480.0,0.00024931,10]
[380732111,1755852649072,-480.0,0.00024931,10]
[380732113,1755852649082,-480.0,0.00024931,10]
[380732115,1755852649091,-353.56619878,0.00024931,10]
[380732117,1755852649101,-480.0,0.00024931,10]
[380732119,1755852649110,-480.0,0.00024931,10]
[380732121,1755852649120,-300.299995,0.00024931,10]
[380732123,1755852649129,-178.90958182,0.00024931,10]
[380732125,1755852649139,-480.0,0.00024931,10]
[380732127,1755852649149,-480.0,0.00024931,10]
[380732128,1755852649158,-480.0,0.00024931,10]
[380732130,1755852649168,-599.0956425,0.00024931,10]
[380732132,1755852649177,-480.0,0.00024931,10]
[380732134,1755852649187,-480.0,0.00024931,10]
[380732136,1755852649196,-484.90715805,0.00024931,10]
[380732138,1755852649206,-480.0,0.00024931,10]
[380732140,1755852649216,-480.0,0.00024931,10]
[380732142,1755852649225,-483.62870143,0.00024931,10]
[380732144,1755852649234,-480.0,0.00024931,10]